bitfinex/quotes_SOLUSD_20230120
["timestamp","ask_amount","ask_price","bid_price","bid_amount"]
[1674227724872,34.93,21.475,21.463,17.0]
[1674227725093,34.93,21.478,21.463,17.0]
[1674227725406,32.29707687,21.475,21.463,17.0]
[1674227726889,34.93,21.478,21.463,17.0]
[1674227727415,32.29707687,21.477,21.463,17.0]
[1674227727733,34.93,21.476,21.463,17.0]
[1674227728874,67.22707687,21.476,21.464,10.0]
[1674227729189,34.93,21.478,21.465,17.0]
[1674227729929,67.22707687,21.478,21.465,17.0]
[1674227732963,34.93,21.478,21.462,10.0]
[1674227733174,20.0,21.477,21.457,34.96]
[1674227733401,20.0,21.477,21.45,111.1179]
[1674227733402,19.74,21.47,21.455,34.96]
[1674227733594,20.0,21.469,21.455,34.96]
[1674227734552,20.0,21.469,21.457,17.0]
[1674227734771,20.0,21.469,21.455,34.96]
[1674227734961,20.0,21.469,21.458,10.0]
[1674227735174,54.93,21.474,21.458,10.0]
[1674227735393,54.93,21.474,21.455,34.96]
[1674227735607,94.99649318,21.474,21.453,151.3497]
[1674227735809,10.0,21.473,21.453,151.3497]
[1674227736023,54.94,21.472,21.453,151.3497]
[1674227736232,19.68,21.47,21.453,151.3497]
[1674227736557,54.94,21.469,21.453,116.3797]
[1674227736775,10.0,21.468,21.453,116.3797]
[1674227736969,34.94,21.467,21.453,116.3797]
[1674227738870,34.94,21.468,21.455,10.0]
[1674227739062,34.94,21.468,21.456,17.0]
[1674227740555,34.94,21.468,21.45,111.1179]
[1674227740769,75.00649318,21.468,21.45,111.1179]
[1674227741481,10.0,21.467,21.45,111.1179]
[1674227741693,34.95,21.466,21.45,111.1179]
[1674227742017,19.68,21.46,21.45,111.1179]
[1674227742240,54.96,21.459,21.45,111.1179]
[1674227742638,54.96,21.459,21.445,118.7813]
[1674227743401,20.0,21.459,21.445,153.7613]
[1674227743996,20.0,21.459,21.449,17.0]
[1674227744213,20.0,21.459,21.445,118.7813]
[1674227744528,20.0,21.464,21.445,118.7813]
[1674227744745,20.0,21.464,21.445,153.7613]
[1674227744746,34.95,21.463,21.445,153.7613]
[1674227745066,20.0,21.462,21.445,118.7813]
[1674227745301,34.95,21.461,21.445,153.7613]
[1674227745601,20.0,21.46,21.449,17.0]
[1674227746019,34.96,21.459,21.449,17.0]
[1674227747155,39.74,21.46,21.449,17.0]
[1674227747574,39.74,21.46,21.445,118.7813]
[1674227747807,34.96,21.459,21.445,118.7813]
[1674227748011,39.74,21.46,21.446,44.98]
[1674227748840,39.74,21.46,21.446,10.0]
[1674227749049,34.96,21.459,21.446,10.0]
[1674227750107,34.96,21.459,21.447,17.0]
[1674227750963,75.02649318,21.459,21.447,17.0]
[1674227751479,75.02649318,21.459,21.446,17.0]
[1674227751693,0.09309864,21.446,21.441,10.0]
[1674227756637,0.00555685,21.446,21.441,10.0]
[1674227756855,0.00555685,21.446,21.442,17.0]
[1674227757801,0.00555685,21.446,21.438,10.0]
[1674227757802,0.00555685,21.446,21.403,988.6]
[1674227758017,34.98,21.445,21.429,115.2933]
[1674227758229,0.00555685,21.446,21.429,115.2933]
[1674227758429,0.00555685,21.446,21.43,35.0]
[1674227758632,0.00555685,21.446,21.43,54.74]
[1674227758832,0.00555685,21.446,21.431,23.75576951]
[1674227759048,0.00555685,21.446,21.432,35.0]
[1674227759480,0.00555685,21.446,21.433,17.96]
[1674227759688,0.00555685,21.446,21.435,10.0]
[1674227759901,0.00555685,21.446,21.437,10.0]
[1674227760216,0.00555685,21.446,21.438,190.9309]
[1674227760434,0.00555685,21.446,21.438,155.9409]
[1674227760628,34.96,21.459,21.44,10.0]
[1674227760841,34.96,21.459,21.441,17.0]
[1674227761050,34.96,21.459,21.442,10.0]
[1674227761249,34.96,21.459,21.444,10.0]
[1674227761691,34.96,21.459,21.445,17.0]
[1674227762103,10.0,21.458,21.445,17.0]
[1674227762428,34.96,21.457,21.44,10.0]
[1674227762635,20.0,21.456,21.44,10.0]
[1674227762853,20.0,21.456,21.439,122.3644]
[1674227762854,19.74,21.45,21.439,112.3644]
[1674227763042,20.0,21.449,21.439,112.3644]
[1674227763258,34.98,21.448,21.439,112.3644]
[1674227764533,34.98,21.448,21.429,35.01]
[1674227764750,34.98,21.448,21.43,108.5126]
[1674227765264,10.0,21.447,21.43,108.5126]
[1674227765469,10.0,21.445,21.42,35.02]
[1674227765677,19.74,21.44,21.421,115.3228]
[1674227765887,54.99,21.439,21.421,115.3228]
[1674227766098,97.4173609,21.439,21.421,115.3228]
[1674227766530,10.0,21.438,21.421,115.3228]
[1674227766742,34.99,21.437,21.421,115.3228]
[1674227767258,10.0,21.436,21.421,115.3228]
[1674227767469,10.0,21.434,21.421,115.3228]
[1674227767681,35.0,21.433,21.421,115.3228]
[1674227768220,19.63,21.43,21.415,35.03]
[1674227768429,55.01,21.429,21.414,10.0]
[1674227768823,55.01,21.429,21.415,35.03]
[1674227769049,20.0,21.429,21.414,45.03]
[1674227769267,20.0,21.429,21.414,35.03]
[1674227769477,10.0,21.427,21.413,111.3354]
[1674227769670,35.01,21.426,21.413,111.3354]
[1674227770202,35.01,21.428,21.413,111.3354]
[1674227770420,20.0,21.429,21.414,10.0]
[1674227770630,20.0,21.429,21.415,17.0]
[1674227771160,20.0,21.434,21.415,17.0]
[1674227771370,10.0,21.432,21.415,17.0]
[1674227771602,19.74,21.43,21.415,17.0]
[1674227771794,55.01,21.429,21.413,111.3354]
[1674227771982,10.0,21.428,21.413,111.3354]
[1674227772193,35.01,21.427,21.413,111.3354]
[1674227772842,35.01,21.428,21.414,10.0]
[1674227773161,20.0,21.429,21.415,35.03]
[1674227773378,20.0,21.432,21.416,10.0]
[1674227773690,20.0,21.434,21.417,109.4609]
[1674227773896,35.0,21.433,21.418,17.0]
[1674227774104,35.0,21.435,21.419,10.0]
[1674227774311,34.99,21.437,21.42,35.02]
[1674227774514,34.99,21.439,21.421,27.0]
[1674227774849,34.99,21.44,21.422,35.02]
[1674227775055,20.0,21.439,21.423,17.0]
[1674227775243,34.99,21.438,21.423,17.0]
[1674227775463,34.99,21.438,21.424,10.0]
[1674227775771,20.0,21.439,21.425,17.0]
[1674227775991,20.0,21.443,21.425,17.0]
[1674227776189,34.99,21.442,21.425,52.01]
[1674227776397,34.99,21.442,21.426,10.0]
[1674227776607,42.4273609,21.445,21.427,17.0]
[1674227776608,34.98,21.443,21.427,17.0]
[1674227776838,34.98,21.444,21.427,17.0]
[1674227777262,32.3125531,21.443,21.427,17.0]
[1674227777466,34.99,21.442,21.427,17.0]
[1674227777684,20.0,21.441,21.427,17.0]
[1674227777875,34.99,21.44,21.427,17.0]
[1674227778086,20.0,21.439,21.427,17.0]
[1674227778292,20.0,21.439,21.423,10.0]
[1674227778293,20.0,21.439,21.425,17.0]
[1674227778513,10.0,21.438,21.424,17.0]
[1674227778720,10.0,21.438,21.418,10.0]
[1674227778721,44.99,21.438,21.418,45.02]
[1674227778941,77.3025531,21.438,21.418,45.02]
[1674227779165,77.3025531,21.438,21.418,10.0]
[1674227779166,119.729914,21.438,21.418,10.0]
[1674227780214,19.74,21.43,21.417,144.4909]
[1674227780425,55.01,21.429,21.411,35.04]
[1674227780635,87.3225531,21.429,21.408,109.5342]
[1674227780832,84.44658066,21.428,21.408,109.5342]
[1674227781043,35.01,21.427,21.408,109.5342]
[1674227781256,87.14402756,21.427,21.408,109.5342]
[1674227781573,94.44658066,21.426,21.409,10.0]
[1674227781792,35.01,21.425,21.409,10.0]
[1674227781984,119.45658066,21.425,21.409,10.0]
[1674227782190,19.74,21.42,21.409,10.0]
[1674227782406,20.0,21.419,21.409,10.0]
[1674227782943,20.0,21.422,21.409,10.0]
[1674227783149,32.3125531,21.419,21.408,109.5342]
[1674227783779,19.74,21.42,21.408,109.5342]
[1674227783992,139.46658066,21.419,21.408,109.5342]
[1674227784209,139.46658066,21.419,21.402,35.05]
[1674227784423,10.0,21.418,21.402,35.05]
[1674227784642,10.0,21.418,21.401,10.0]
[1674227784643,19.74,21.41,21.401,10.0]
[1674227785467,19.74,21.41,21.401,45.05]
[1674227785874,19.74,21.41,21.401,10.0]
[1674227786628,35.03,21.416,21.401,10.0]
[1674227787249,35.01,21.424,21.403,10.0]
[1674227787468,19.74,21.43,21.403,10.0]
[1674227787469,32.3125531,21.425,21.404,73.01]
[1674227787665,35.01,21.429,21.404,73.01]
[1674227787883,10.0,21.428,21.405,10.0]
[1674227788092,35.01,21.427,21.406,72.04]
[1674227788422,10.0,21.426,21.407,10.0]
[1674227788611,35.01,21.425,21.409,10.0]
[1674227789152,35.01,21.429,21.41,52.04]
[1674227789478,35.01,21.429,21.411,10.0]
[1674227789653,67.3225531,21.429,21.412,17.0]
[1674227789864,35.01,21.429,21.412,17.0]
[1674227790074,32.3125531,21.428,21.412,17.0]
[1674227790285,35.01,21.427,21.412,35.03]
[1674227790519,35.01,21.427,21.411,10.0]
[1674227791567,32.3125531,21.426,21.411,10.0]
[1674227791781,35.01,21.425,21.411,10.0]
[1674227791976,35.01,21.426,21.411,10.0]
[1674227792299,35.01,21.429,21.411,10.0]
[1674227792517,32.3125531,21.428,21.412,35.03]
[1674227792712,35.01,21.427,21.413,17.0]
[1674227792929,35.01,21.429,21.413,10.0]
[1674227793249,32.3125531,21.428,21.414,17.0]
[1674227793464,35.01,21.427,21.414,17.0]
[1674227793785,35.01,21.429,21.414,17.0]
[1674227794193,86.85287956,21.429,21.414,17.0]
[1674227795240,32.3125531,21.428,21.414,17.0]
[1674227795450,35.01,21.427,21.414,17.0]
[1674227795780,35.01,21.428,21.414,17.0]
[1674227796180,86.85287956,21.428,21.414,17.0]
[1674227796390,119.16543266,21.428,21.414,17.0]
[1674227796607,51.84287956,21.428,21.414,17.0]
[1674227796824,35.01,21.427,21.414,17.0]
[1674227797136,86.85287956,21.427,21.413,10.0]
[1674227797670,32.19757761,21.426,21.413,10.0]
[1674227797859,35.01,21.425,21.413,10.0]
[1674227798070,35.01,21.426,21.413,10.0]
[1674227799240,35.01,21.426,21.414,17.0]
[1674227799454,119.15546811,21.426,21.414,17.0]
[1674227799773,67.31258855,21.426,21.414,17.0]
[1674227799955,35.01,21.426,21.414,17.0]
[1674227800166,32.30258855,21.426,21.414,17.0]
[1674227800375,35.01,21.425,21.413,10.0]
[1674227800598,35.01,21.429,21.413,10.0]
[1674227801019,32.30258855,21.428,21.413,10.0]
[1674227801225,35.01,21.427,21.413,10.0]
[1674227801541,35.01,21.427,21.41,128.2231]
[1674227801542,32.30258855,21.426,21.41,128.2231]
[1674227801754,19.74,21.42,21.406,114.423]
[1674227801973,55.02,21.419,21.406,114.423]
[1674227802186,87.32258855,21.419,21.406,114.423]
[1674227802503,55.02,21.419,21.406,114.423]
[1674227802692,55.02,21.419,21.407,10.0]
[1674227802904,20.0,21.419,21.407,10.0]
[1674227803235,20.0,21.419,21.408,17.0]
[1674227803439,20.0,21.419,21.409,10.0]
[1674227803657,20.0,21.419,21.41,17.0]
[1674227803969,52.30258855,21.419,21.41,17.0]
[1674227804174,20.0,21.419,21.41,17.0]
[1674227804371,20.0,21.424,21.41,17.0]
[1674227804572,35.02,21.423,21.41,17.0]
[1674227804785,67.31258855,21.425,21.411,45.04]
[1674227804996,67.31258855,21.425,21.413,10.0]
[1674227805230,32.30258855,21.425,21.414,17.0]
[1674227805841,35.01,21.429,21.414,17.0]
[1674227806056,32.26105789,21.428,21.414,17.0]
[1674227806267,35.01,21.427,21.414,17.0]
[1674227807414,32.26105789,21.428,21.414,17.0]
[1674227807643,35.01,21.427,21.414,17.0]
[1674227807839,35.01,21.429,21.414,17.0]
[1674227808701,32.26105789,21.428,21.414,17.0]
[1674227808906,35.01,21.427,21.414,17.0]
[1674227809221,35.01,21.429,21.414,17.0]
[1674227809414,10.0,21.428,21.414,17.0]
[1674227809625,32.26105789,21.426,21.414,17.0]
[1674227809846,35.01,21.425,21.414,17.0]
[1674227810055,35.01,21.429,21.414,17.0]
[1674227810889,35.01,21.429,21.415,10.0]
[1674227811113,35.01,21.429,21.416,17.0]
[1674227811540,32.26105789,21.428,21.416,17.0]
[1674227811756,35.01,21.427,21.416,17.0]
[1674227812173,67.27105789,21.427,21.416,17.0]
[1674227812389,32.26105789,21.427,21.416,17.0]
[1674227812915,35.01,21.429,21.416,17.0]
[1674227813544,35.01,21.429,21.417,118.0046]
[1674227813768,35.01,21.429,21.418,17.0]
[1674227814080,32.26105789,21.428,21.419,10.0]
[1674227814288,35.01,21.429,21.42,17.0]
[1674227814474,67.27105789,21.429,21.42,17.0]
[1674227814685,35.01,21.429,21.42,17.0]
[1674227815546,615.64729542,21.452,21.42,17.0]
[1674227815547,111.8451,21.445,21.42,17.0]
[1674227815738,32.26105789,21.433,21.421,35.02]
[1674227815953,19.74,21.43,21.42,17.0]
[1674227816784,19.74,21.43,21.421,10.0]
[1674227817005,34.99,21.438,21.422,17.0]
[1674227817417,32.26105789,21.437,21.422,17.0]
[1674227817629,19.74,21.44,21.422,17.0]
[1674227817630,35.0,21.436,21.422,17.0]
[1674227817843,34.99,21.439,21.422,17.0]
[1674227818048,10.0,21.438,21.422,17.0]
[1674227818269,34.99,21.437,21.422,17.0]
[1674227819128,32.26105789,21.436,21.422,17.0]
[1674227819322,10.0,21.434,21.422,17.0]
[1674227819536,19.68,21.43,21.413,162.7447]
[1674227819749,19.68,21.43,21.413,127.7147]
[1674227819750,55.01,21.429,21.413,127.7147]
[1674227819962,87.27105789,21.429,21.413,127.7147]
[1674227820487,32.26105789,21.428,21.413,127.7147]
[1674227820670,55.01,21.429,21.413,127.7147]
[1674227820880,32.26105789,21.428,21.413,127.7147]
[1674227821743,35.01,21.427,21.413,127.7147]
[1674227822151,32.26105789,21.426,21.413,127.7147]
[1674227822569,35.01,21.428,21.413,127.7147]
[1674227823212,20.0,21.429,21.418,17.0]
[1674227823618,20.0,21.435,21.418,17.0]
[1674227823948,35.0,21.434,21.419,10.0]
[1674227824164,35.0,21.434,21.42,17.0]
[1674227824484,34.99,21.439,21.421,35.02]
[1674227824696,32.26105789,21.435,21.422,17.0]
[1674227824908,35.0,21.434,21.422,17.0]
[1674227825213,19.74,21.43,21.413,162.7447]
[1674227825622,20.0,21.429,21.413,162.7447]
[1674227826466,55.01,21.429,21.413,162.7447]
[1674227826676,20.0,21.429,21.418,17.0]
[1674227826900,20.0,21.431,21.418,17.0]
[1674227827109,35.0,21.43,21.418,17.0]
[1674227827307,20.0,21.429,21.418,17.0]
[1674227827518,52.26105789,21.429,21.418,17.0]
[1674227827845,32.26105789,21.428,21.418,17.0]
[1674227828031,20.0,21.429,21.418,27.0]
[1674227828247,20.0,21.436,21.418,27.0]
[1674227828474,35.0,21.435,21.418,27.0]
[1674227828802,67.26105789,21.435,21.42,10.0]
[1674227828984,34.99,21.439,21.421,17.0]
[1674227829421,32.26105789,21.437,21.422,35.02]
[1674227829636,32.26105789,21.437,21.423,17.0]
[1674227830141,34.99,21.439,21.423,17.0]
[1674227830354,10.0,21.438,21.423,17.0]
[1674227830564,34.99,21.437,21.423,17.0]
[1674227831205,10.0,21.436,21.423,17.0]
[1674227831415,10.0,21.436,21.415,45.03]
[1674227831416,19.68,21.43,21.415,45.03]
[1674227831738,55.01,21.429,21.415,10.0]
[1674227831951,87.27105789,21.429,21.415,10.0]
[1674227832267,87.27105789,21.429,21.401,10.0]
[1674227832268,32.26105789,21.428,21.41,35.04]
[1674227832566,35.01,21.427,21.404,35.05]
[1674227832889,10.0,21.425,21.406,149.463]
[1674227833095,19.74,21.42,21.406,114.423]
[1674227833306,55.02,21.419,21.406,114.423]
[1674227833525,87.28105789,21.419,21.406,114.423]
[1674227834886,42.26105789,21.418,21.406,114.423]
[1674227835284,32.26105789,21.417,21.406,114.423]
[1674227835704,67.29105789,21.417,21.402,115.6673]
[1674227835940,10.0,21.416,21.402,115.6673]
[1674227836129,35.03,21.415,21.402,115.6673]
[1674227836340,67.29105789,21.415,21.402,115.6673]
[1674227836776,32.26105789,21.415,21.402,115.6673]
[1674227837295,19.74,21.41,21.396,10.0]
[1674227837516,20.0,21.409,21.396,10.0]
[1674227837716,52.26105789,21.409,21.396,10.0]
[1674227837915,52.26105789,21.409,21.388,10.0]
[1674227837916,32.26105789,21.408,21.389,35.07]
[1674227838348,35.04,21.407,21.389,35.07]
[1674227838665,10.0,21.405,21.388,10.0]
[1674227838876,35.05,21.404,21.388,10.0]
[1674227839088,19.68,21.4,21.387,112.4251]
[1674227839316,20.0,21.399,21.387,112.4251]
[1674227839533,55.81439122,21.399,21.387,112.4251]
[1674227840157,35.81439122,21.398,21.387,112.4251]
[1674227840372,70.87439122,21.398,21.387,112.4251]
[1674227840895,45.81439122,21.397,21.387,112.4251]
[1674227841086,35.81439122,21.397,21.387,112.4251]
[1674227841503,35.05,21.404,21.387,112.4251]
[1674227841722,10.0,21.402,21.388,20.0]
[1674227841936,35.05,21.401,21.386,20.0]
[1674227842346,35.76239122,21.402,21.387,35.08]
[1674227842562,35.76239122,21.402,21.388,20.0]
[1674227842766,35.76239122,21.402,21.386,45.08]
[1674227842767,35.76239122,21.402,21.387,20.0]
[1674227843000,35.04,21.409,21.388,52.07]
[1674227843205,35.04,21.409,21.389,20.0]
[1674227843527,35.04,21.409,21.39,52.07]
[1674227843718,35.04,21.409,21.391,10.0]
[1674227843934,35.04,21.409,21.392,52.07]
[1674227844548,33.60614189,21.41,21.393,10.96]
[1674227844869,20.0,21.409,21.394,52.06]
[1674227845715,20.0,21.409,21.395,10.0]
[1674227845913,33.60614189,21.41,21.396,17.0]
[1674227846129,35.02,21.419,21.397,55.06]
[1674227846339,35.02,21.419,21.397,170.526]
[1674227846677,10.0,21.418,21.399,10.0]
[1674227846873,35.03,21.417,21.4,17.0]
[1674227847703,46.71503062,21.416,21.4,17.0]
[1674227847917,35.03,21.415,21.4,17.0]
[1674227848565,10.0,21.414,21.4,17.0]
[1674227848876,10.0,21.414,21.399,17.0]
[1674227848877,83.85734189,21.413,21.399,17.0]
[1674227849078,130.57237251,21.413,21.398,17.0]
[1674227849626,46.71503062,21.412,21.398,17.0]
[1674227849827,55.04,21.411,21.398,17.0]
[1674227850230,55.04,21.411,21.397,115.466]
[1674227850231,101.75503062,21.411,21.397,115.466]
[1674227850438,130.58237251,21.411,21.397,115.466]
[1674227850652,19.74,21.41,21.397,115.466]
[1674227850972,55.04,21.409,21.387,35.08]
[1674227851184,55.04,21.409,21.392,112.2632]
[1674227852247,20.0,21.409,21.393,45.07]
[1674227852460,113.8275,21.417,21.393,45.07]
[1674227852461,35.03,21.416,21.396,55.06]
[1674227852674,28.82734189,21.418,21.397,27.0]
[1674227852982,35.03,21.417,21.398,55.06]
[1674227853296,48.82734189,21.416,21.393,10.0]
[1674227853504,19.68,21.41,21.393,10.0]
[1674227853715,55.04,21.409,21.393,10.0]
[1674227855592,20.0,21.409,21.396,17.0]
[1674227855801,20.0,21.413,21.396,17.0]
[1674227856027,35.03,21.412,21.397,10.0]
[1674227856350,20.0,21.411,21.398,17.0]
[1674227856536,20.0,21.411,21.399,10.0]
[1674227856747,20.0,21.412,21.4,17.0]
[1674227856964,20.0,21.413,21.4,17.0]
[1674227857269,20.0,21.413,21.399,10.0]
[1674227857270,48.82734189,21.413,21.399,10.0]
[1674227857503,35.03,21.412,21.399,10.0]
[1674227857707,20.0,21.411,21.399,10.0]
[1674227857938,54.78,21.41,21.392,112.2632]
[1674227858234,20.0,21.409,21.392,112.2632]
[1674227858459,45.04,21.408,21.392,112.2632]
[1674227858641,35.04,21.408,21.393,10.0]
[1674227858971,63.86734189,21.408,21.393,10.0]
[1674227859287,35.04,21.408,21.393,10.0]
[1674227859496,20.0,21.409,21.395,10.0]
[1674227859708,20.0,21.409,21.397,10.0]
[1674227859913,20.0,21.413,21.397,10.0]
[1674227860129,35.03,21.412,21.397,10.0]
[1674227860317,20.0,21.411,21.398,17.0]
[1674227860529,35.04,21.41,21.398,17.0]
[1674227860745,20.0,21.409,21.398,17.0]
[1674227860969,20.0,21.409,21.397,10.0]
[1674227860970,35.04,21.408,21.397,10.0]
[1674227861385,35.04,21.408,21.395,128.3315]
[1674227861806,110.58237251,21.408,21.389,35.07]
[1674227862004,10.0,21.406,21.386,124.133]
[1674227862219,55.05,21.405,21.386,124.133]
[1674227862430,83.87734189,21.405,21.386,124.133]
[1674227862639,83.87734189,21.405,21.386,159.213]
[1674227863475,83.87734189,21.405,21.386,124.133]
[1674227863696,19.63,21.4,21.386,124.133]
[1674227863898,19.63,21.4,21.386,10.0]
[1674227863899,20.0,21.399,21.386,10.0]
[1674227864450,55.06,21.399,21.386,10.0]
[1674227865068,20.0,21.399,21.386,10.0]
[1674227866127,20.0,21.399,21.389,17.0]
[1674227866964,20.0,21.399,21.39,10.0]
[1674227867181,20.0,21.399,21.391,17.0]
[1674227871276,19.63,21.41,21.391,17.0]
[1674227871277,35.05,21.404,21.391,17.0]
[1674227871466,32.81400855,21.408,21.392,45.07]
[1674227871677,32.81400855,21.408,21.393,17.0]
[1674227872432,32.81400855,21.408,21.394,10.0]
[1674227872645,32.81400855,21.408,21.395,17.0]
[1674227872836,35.04,21.407,21.395,134.9461]
[1674227873048,35.04,21.407,21.392,10.0]
[1674227873263,99.52903917,21.406,21.392,10.0]
[1674227873479,35.05,21.405,21.392,10.0]
[1674227873678,20.0,21.404,21.392,10.0]
[1674227873895,35.05,21.403,21.389,10.0]
[1674227874100,29.8,21.4,21.388,10.0]
[1674227874316,55.06,21.399,21.388,10.0]
[1674227874522,20.0,21.399,21.388,10.0]
[1674227875480,20.0,21.399,21.389,17.0]
[1674227877483,20.0,21.401,21.389,17.0]
[1674227877792,32.81400855,21.406,21.389,17.0]
[1674227877793,55.05,21.405,21.389,17.0]
[1674227877983,10.0,21.404,21.389,17.0]
[1674227878197,55.05,21.403,21.389,17.0]
[1674227879268,55.05,21.403,21.388,10.0]
[1674227880121,32.81400855,21.402,21.388,10.0]
[1674227880435,55.05,21.401,21.388,10.0]
[1674227880649,20.0,21.401,21.389,17.0]
[1674227881470,32.81400855,21.402,21.389,17.0]
[1674227881471,32.81400855,21.402,21.39,10.0]
[1674227881681,35.04,21.409,21.391,52.07]
[1674227881897,30.1,21.42,21.392,10.0]
[1674227881898,35.04,21.41,21.392,10.0]
[1674227882109,46.71503062,21.413,21.393,52.07]
[1674227882306,46.71503062,21.409,21.393,17.0]
[1674227882526,35.04,21.408,21.393,17.0]
[1674227883906,111.28607984,21.408,21.392,10.0]
[1674227884302,10.0,21.407,21.392,10.0]
[1674227884514,35.04,21.406,21.391,10.0]
[1674227884931,10.0,21.405,21.39,122.6212]
[1674227885274,35.05,21.404,21.391,17.0]
[1674227885769,35.05,21.404,21.385,45.08]
[1674227885983,30.0,21.403,21.385,10.0]
[1674227886307,35.05,21.402,21.385,10.0]
[1674227886526,20.0,21.401,21.385,10.0]
[1674227886845,35.05,21.4,21.385,10.0]
[1674227887027,20.0,21.399,21.385,10.0]
[1674227887679,20.0,21.402,21.385,10.0]
[1674227887891,35.05,21.401,21.388,17.0]
[1674227888088,20.0,21.4,21.388,17.0]
[1674227888733,20.0,21.407,21.388,17.0]
[1674227888936,35.04,21.406,21.388,17.0]
[1674227889150,30.0,21.405,21.388,17.0]
[1674227889365,35.05,21.404,21.388,17.0]
[1674227889565,20.0,21.403,21.388,17.0]
[1674227889902,35.05,21.402,21.388,17.0]
[1674227890081,20.0,21.401,21.389,10.0]
[1674227890292,20.0,21.401,21.39,17.0]
[1674227890708,20.0,21.407,21.39,17.0]
[1674227890924,10.0,21.405,21.39,17.0]
[1674227891134,55.05,21.404,21.389,10.0]
[1674227892733,55.05,21.404,21.39,17.0]
[1674227892960,55.05,21.404,21.388,17.0]
[1674227893977,84.58104922,21.404,21.388,17.0]
[1674227894182,10.0,21.403,21.385,10.0]
[1674227894398,55.05,21.402,21.385,10.0]
[1674227894607,86.50833134,21.402,21.385,10.0]
[1674227894827,86.50833134,21.402,21.385,45.08]
[1674227895352,55.05,21.402,21.385,45.08]
[1674227895564,55.05,21.402,21.385,10.0]
[1674227897040,55.05,21.402,21.388,17.0]
[1674227897259,35.04,21.407,21.389,55.07]
[1674227897457,35.04,21.408,21.39,17.96]
[1674227897669,31.45833134,21.409,21.391,35.07]
[1674227897986,35.04,21.408,21.393,10.0]
[1674227898199,35.04,21.408,21.394,52.06]
[1674227898384,31.45833134,21.409,21.394,17.0]
[1674227898597,31.45833134,21.409,21.395,117.4681]
[1674227898934,31.45833134,21.409,21.396,17.0]
[1674227899121,31.45833134,21.409,21.397,10.0]
[1674227899330,31.45833134,21.409,21.398,17.0]
[1674227899966,35.03,21.414,21.398,17.0]